fUST/lending_fUST_20240626
["ID","MTS","AMOUNT","RATE_DAILY","PERIOD"]
[330417407,1719361839460,-518.09414196,0.00016438,2]
[330417408,1719361839471,-500.0,0.00016438,2]
[330417409,1719361839482,-548.82,0.00016438,2]
[330417410,1719361839492,-500.0,0.00016438,2]
[330417411,1719361839505,-500.0,0.00016438,2]
[330417412,1719361839515,-500.0,0.00016438,2]
[330417413,1719361839525,-500.0,0.00016438,2]
[330417414,1719361839536,-500.0,0.00016438,2]
[330417415,1719361839546,-205.69006155,0.00016438,2]
[330417416,1719361839556,-500.0,0.00016438,2]
[330417417,1719361839567,-2385.25,0.00016438,2]
[330417418,1719361839581,-500.0,0.00016438,2]
[330417419,1719361839592,-500.0,0.00016438,2]
[330417420,1719361839602,-500.0,0.00016438,2]
[330417421,1719361839612,-500.0,0.00016438,2]
[330417422,1719361839626,-1458.72,0.00016438,2]
[330417423,1719361839637,-11466.45,0.00016438,2]
[330417424,1719361839648,-500.0,0.00016438,2]
[330417425,1719361839661,-828.18,0.00016438,2]
[330417426,1719361839673,-1577.7,0.00016438,2]
[330417427,1719361839683,-4328.0,0.00016438,2]
[330417428,1719361839694,-500.0,0.00016438,2]
[330417429,1719361839705,-2654.43,0.00016438,2]
[330417430,1719361839716,-500.0,0.00016438,2]
[330417431,1719361839726,-500.0,0.00016438,2]
[330417432,1719361839736,-500.0,0.00016438,2]
[330417433,1719361839746,-500.0,0.00016438,2]
[330417434,1719361839758,-500.0,0.00016438,2]
[330417435,1719361839769,-500.0,0.00016438,2]
[330417436,1719361839782,-500.0,0.00016438,2]
[330417437,1719361839793,-500.0,0.00016438,2]
[330417438,1719361839803,-500.0,0.00016438,2]
[330417439,1719361839814,-639.25,0.00016438,2]
[330417440,1719361839825,-500.0,0.00016438,2]
[330417441,1719361839836,-557.65,0.00016438,2]
[330417442,1719361839848,-950.3,0.00016438,2]
[330417443,1719361839858,-500.0,0.00016438,2]
[330417444,1719361839869,-4740.19,0.00016438,2]
[330417445,1719361839882,-500.0,0.00016438,2]
[330417446,1719361839893,-500.0,0.00016438,2]
[330417447,1719361839904,-5237.01,0.00016438,2]
[330417448,1719361839916,-500.0,0.00016438,2]
[330417449,1719361839926,-16493.05,0.00016438,2]
[330417450,1719361839936,-500.0,0.00016438,2]
[330417451,1719361839946,-500.0,0.00016438,2]
[330417452,1719361839956,-500.0,0.00016438,2]
[330417453,1719361839967,-500.0,0.00016438,2]
[330417454,1719361839977,-500.0,0.00016438,2]
[330417455,1719361839988,-687.5,0.00016438,2]
[330417456,1719361839998,-748.9,0.00016438,2]
[330417457,1719361840009,-500.0,0.00016438,2]
[330417458,1719361840020,-500.0,0.00016438,2]
[330417459,1719361840030,-214.757213,0.00016438,2]
[330417460,1719361840041,-214.757213,0.00016438,2]
[330417461,1719361840051,-214.757213,0.00016438,2]
[330417462,1719361840066,-24183.82,0.00016438,2]
[330417463,1719361840078,-500.0,0.00016438,2]
[330417464,1719361840088,-214.757213,0.00016438,2]
[330417465,1719361840099,-214.757213,0.00016438,2]
[330417466,1719361840110,-214.757213,0.00016438,2]
[330417467,1719361840121,-500.0,0.00016438,2]
[330417468,1719361840132,-500.0,0.00016438,2]
[330417469,1719361840143,-519.47358587,0.00016438,2]
[330417470,1719361840153,-500.0,0.00016438,2]
[330417471,1719361840164,-500.0,0.00016438,2]
[330417472,1719361840174,-2802.61,0.00016438,2]
[330417473,1719361840184,-3498.62,0.00016438,2]
[330417474,1719361840195,-1100.05,0.00016438,2]
[330417475,1719361840205,-526.15,0.00016438,2]
[330417476,1719361840216,-500.0,0.00016438,2]
[330417477,1719361840226,-500.0,0.00016438,2]
[330417478,1719361840237,-500.0,0.00016438,2]
[330417479,1719361840247,-5274.58,0.00016438,2]
[330417480,1719361840257,-500.0,0.00016438,2]
[330417481,1719361840266,-500.0,0.00016438,2]
[330417482,1719361840276,-500.0,0.00016438,2]
[330417483,1719361840286,-500.0,0.00016438,2]
[330417484,1719361840295,-1222.68,0.00016438,2]
[330417485,1719361840305,-500.0,0.00016438,2]
[330417486,1719361840315,-500.0,0.00016438,2]
[330417487,1719361840324,-671.48,0.00016438,2]
[330417488,1719361840334,-500.0,0.00016438,2]
[330417489,1719361840344,-1731.0,0.00016438,2]
[330417490,1719361840354,-500.0,0.00016438,2]
[330417492,1719361840363,-1267.85,0.00016438,2]
[330417494,1719361840373,-579.33,0.00016438,2]
[330417496,1719361840386,-7704.52154261,0.00016438,2]
[330417504,1719361840458,-156.83966735,0.00016338,2]
[330417506,1719361840468,-658.18845739,0.00016438,2]
[330417507,1719361840477,-184.96524576,0.00016438,2]
[330417788,1719362241909,3293.37687449,0.0001,2]
[330417795,1719362504313,174.47194654,0.00012121,2]
[330417796,1719362533660,154.83742071,0.00012121,2]
[330417800,1719362773017,154.83742071,0.00013999,2]
[330417801,1719363012206,-190.63621531,0.00014112,2]
[330417802,1719363012238,-300.0,0.00014374,2]
[330417803,1719363012269,-119.81786282,0.00014374,2]
[330417804,1719363012309,-40.18213718,0.00014374,2]
[330417805,1719363012343,-154.83742071,0.00014374,2]
[330417806,1719363012374,-415.43452024,0.00014375,2]
[330417807,1719363012409,-556.56796168,0.00014375,2]
[330417808,1719363012444,-610.45407813,0.00014375,2]
[330417856,1719363038131,-23317.54343995,0.00014375,2]
[330417857,1719363038142,-990.49460368,0.00014461,2]
[330417858,1719363038152,-1956.60410246,0.00014497,2]
[330417859,1719363038161,-2005.3325573,0.00014498,2]
[330417860,1719363038171,-223.576236,0.00014592,2]
[330417861,1719363038180,-373.46689178,0.00015975,2]
[330417862,1719363038190,-1223.94680364,0.00016133,2]
[330417863,1719363038200,-156.83966735,0.0001617,2]
[330417864,1719363038210,-1042.18528705,0.00016209,2]
[330417865,1719363038221,-156.83966735,0.00016226,2]
[330417866,1719363038231,-154.83742071,0.00016232,2]
[330417867,1719363038242,-20000.0,0.00016233,2]
[330417868,1719363038252,-156.83966735,0.00016282,2]
[330417869,1719363038261,-176.03735811,0.00016296,2]
[330417870,1719363038272,-692.93325005,0.00016299,2]
[330417871,1719363038282,-155.28354517,0.00016299,2]
[330417872,1719363038292,-156.83966735,0.00016338,2]
[330417873,1719363038301,-2000.0,0.00016338,2]
[330417874,1719363038311,-11458.52214763,0.00016396,2]
[330417875,1719363038321,-20000.0,0.00016398,2]
[330417876,1719363038331,-620.00034968,0.00016402,2]
[330417877,1719363038342,-266.52646974,0.00016437,2]
[330417878,1719363038351,-309.62844354,0.00016437,2]
[330417879,1719363038360,-842.37295431,0.00016437,2]
[330417880,1719363038370,-500.0,0.00016438,2]
[330417881,1719363038379,-507.87549518,0.00016438,2]
[330417882,1719363038389,-500.0,0.00016438,2]
[330417883,1719363038399,-297.23291265,0.00016438,2]
[330417884,1719363038409,-500.0,0.00016438,2]
[330417885,1719363038418,-512.20271342,0.00016438,2]
[330417886,1719363038428,-500.0,0.00016438,2]
[330417887,1719363038438,-500.0,0.00016438,2]
[330417888,1719363038447,-500.0,0.00016438,2]
[330417889,1719363038457,-500.0,0.00016438,2]
[330417890,1719363038467,-500.0,0.00016438,2]
[330417891,1719363038477,-500.0,0.00016438,2]
[330417892,1719363038487,-561.24032157,0.00016438,2]
[330417893,1719363038497,-1001.73,0.00016438,2]
[330417894,1719363038507,-500.0,0.00016438,2]
[330417895,1719363038517,-500.0,0.00016438,2]
[330417896,1719363038526,-500.0,0.00016438,2]
[330417897,1719363038536,-500.0,0.00016438,2]
[330417898,1719363038546,-500.0,0.00016438,2]
[330417899,1719363038556,-500.0,0.00016438,2]
[330417900,1719363038566,-515.6730036,0.00016438,2]
[330417901,1719363038578,-587.17,0.00016438,2]
[330417902,1719363038588,-500.0,0.00016438,2]
[330417903,1719363038597,-500.0,0.00016438,2]
[330417904,1719363038606,-718.24,0.00016438,2]
[330417905,1719363038616,-11466.45,0.00016438,2]
[330417906,1719363038627,-500.0,0.00016438,2]
[330417907,1719363038638,-500.0,0.00016438,2]
[330417908,1719363038647,-810.37,0.00016438,2]
[330417909,1719363038657,-500.0,0.00016438,2]
[330417910,1719363038666,-557.65,0.00016438,2]
[330417911,1719363038676,-500.0,0.00016438,2]
[330417912,1719363038686,-205.69006155,0.00016438,2]
[330417913,1719363038696,-500.0,0.00016438,2]
[330417914,1719363038705,-500.0,0.00016438,2]
[330417915,1719363038715,-500.0,0.00016438,2]
[330417916,1719363038725,-306.39074947,0.00016438,2]
[330417917,1719363038735,-500.0,0.00016438,2]
[330417918,1719363038744,-500.0,0.00016438,2]
[330417919,1719363038753,-500.0,0.00016438,2]
[330417920,1719363038763,-250.0,0.00016438,2]
[330417921,1719363038772,-500.0,0.00016438,2]
[330417922,1719363038781,-500.0,0.00016438,2]
[330417923,1719363038790,-500.0,0.00016438,2]
[330417924,1719363038799,-500.0,0.00016438,2]
[330417925,1719363038809,-1078.34,0.00016438,2]
[330417926,1719363038819,-500.0,0.00016438,2]
[330417927,1719363038829,-500.0,0.00016438,2]
[330417928,1719363038839,-546.33,0.00016438,2]
[330417929,1719363038848,-500.0,0.00016438,2]
[330417930,1719363038858,-500.0,0.00016438,2]
[330417931,1719363038867,-500.0,0.00016438,2]
[330417932,1719363038877,-500.0,0.00016438,2]
[330417933,1719363038886,-500.0,0.00016438,2]
[330417934,1719363038896,-500.0,0.00016438,2]
[330417935,1719363038905,-896.07,0.00016438,2]
[330417936,1719363038915,-500.0,0.00016438,2]
[330417937,1719363038924,-500.0,0.00016438,2]
[330417938,1719363038934,-473.87871896,0.00016438,2]
[330417939,1719363038943,-500.0,0.00016438,2]
[330417940,1719363038953,-500.0,0.00016438,2]
[330417941,1719363038970,-500.0,0.00016438,2]
[330417942,1719363038980,-500.0,0.00016438,2]
[330417943,1719363038989,-1129.54,0.00016438,2]
[330417944,1719363039000,-1262.17,0.00016438,2]
[330417945,1719363039014,-500.0,0.00016438,2]
[330417946,1719363039025,-855.79,0.00016438,2]
[330417947,1719363039037,-151.0,0.00016438,2]
[330417948,1719363039048,-500.0,0.00016438,2]
[330417949,1719363039059,-500.0,0.00016438,2]
[330417950,1719363039069,-500.0,0.00016438,2]
[330417951,1719363039079,-500.0,0.00016438,2]
[330417952,1719363039090,-500.0,0.00016438,2]
[330417953,1719363039100,-500.0,0.00016438,2]
[330417954,1719363039110,-500.0,0.00016438,2]
[330417955,1719363039121,-500.0,0.00016438,2]
[330417956,1719363039131,-500.0,0.00016438,2]
[330417957,1719363039142,-500.0,0.00016438,2]
[330417958,1719363039151,-500.0,0.00016438,2]
[330417959,1719363039161,-500.0,0.00016438,2]
[330417960,1719363039172,-500.0,0.00016438,2]
[330417961,1719363039183,-500.0,0.00016438,2]
[330417962,1719363039192,-500.0,0.00016438,2]
[330417963,1719363039202,-864.06,0.00016438,2]
[330417964,1719363039212,-500.0,0.00016438,2]
[330417965,1719363039222,-500.0,0.00016438,2]
[330417966,1719363039232,-1056.76,0.00016438,2]
[330417967,1719363039242,-500.0,0.00016438,2]
[330417968,1719363039252,-500.0,0.00016438,2]
[330417969,1719363039262,-500.0,0.00016438,2]
[330417970,1719363039272,-500.0,0.00016438,2]
[330417971,1719363039282,-500.0,0.00016438,2]
[330417972,1719363039292,-500.0,0.00016438,2]
[330417973,1719363039302,-151.0,0.00016438,2]
[330417974,1719363039313,-151.0,0.00016438,2]
[330417975,1719363039324,-500.0,0.00016438,2]
[330417976,1719363039333,-2553.32,0.00016438,2]
[330417977,1719363039343,-500.0,0.00016438,2]
[330417978,1719363039353,-500.0,0.00016438,2]
[330417979,1719363039363,-500.0,0.00016438,2]
[330417980,1719363039373,-500.0,0.00016438,2]
[330417981,1719363039382,-500.0,0.00016438,2]
[330417982,1719363039392,-500.0,0.00016438,2]
[330417983,1719363039402,-370.93717894,0.00016438,2]
[330417984,1719363039412,-500.0,0.00016438,2]
[330417985,1719363039423,-500.0,0.00016438,2]
[330417986,1719363039432,-526.15,0.00016438,2]
[330417987,1719363039443,-548.82,0.00016438,2]
[330417988,1719363039452,-761.23,0.00016438,2]
[330417989,1719363039462,-500.0,0.00016438,2]
[330417990,1719363039473,-500.0,0.00016438,2]
[330417991,1719363039483,-500.0,0.00016438,2]
[330417992,1719363039493,-500.0,0.00016438,2]
[330417993,1719363039502,-518.09414196,0.00016438,2]
[330417994,1719363039512,-500.0,0.00016438,2]
[330417995,1719363039672,-500.0,0.00016438,2]
[330417996,1719363039682,-500.0,0.00016438,2]
[330417997,1719363039693,-500.39665714,0.00016438,2]
[330417998,1719363039704,-772.23,0.00016438,2]
[330417999,1719363039714,-500.0,0.00016438,2]
[330418000,1719363039724,-500.0,0.00016438,2]
[330418001,1719363039733,-500.0,0.00016438,2]
[330418002,1719363039743,-500.0,0.00016438,2]
[330418003,1719363039756,-977.54,0.00016438,2]
[330418004,1719363039766,-500.0,0.00016438,2]
[330418005,1719363039776,-500.0,0.00016438,2]
[330418006,1719363039786,-500.0,0.00016438,2]
[330418007,1719363039796,-500.0,0.00016438,2]
[330418008,1719363039805,-500.0,0.00016438,2]
[330418009,1719363039815,-500.0,0.00016438,2]
[330418010,1719363039827,-1458.72,0.00016438,2]
[330418011,1719363039837,-500.0,0.00016438,2]
[330418012,1719363039848,-500.0,0.00016438,2]
[330418013,1719363039858,-500.0,0.00016438,2]
[330418014,1719363039867,-500.0,0.00016438,2]
[330418015,1719363039877,-533.21,0.00016438,2]
[330418016,1719363039887,-1577.7,0.00016438,2]
[330418017,1719363039897,-500.0,0.00016438,2]
[330418019,1719363039906,-950.3,0.00016438,2]
[330418020,1719363039916,-500.0,0.00016438,2]
[330418021,1719363039926,-500.0,0.00016438,2]
[330418022,1719363039936,-639.25,0.00016438,2]
[330418023,1719363039945,-500.0,0.00016438,2]
[330418024,1719363039955,-500.0,0.00016438,2]
[330418025,1719363039968,-3522.9,0.00016438,2]
[330418026,1719363039978,-500.0,0.00016438,2]
[330418027,1719363039988,-24183.82,0.00016438,2]
[330418028,1719363039998,-500.0,0.00016438,2]
[330418029,1719363040010,-500.0,0.00016438,2]
[330418031,1719363040020,-828.18,0.00016438,2]
[330418033,1719363040029,-500.0,0.00016438,2]
[330418035,1719363040039,-500.0,0.00016438,2]
[330418036,1719363040052,-1406.51,0.00016438,2]
[330418037,1719363040063,-2654.43,0.00016438,2]
[330418038,1719363040074,-500.0,0.00016438,2]
[330418039,1719363040083,-914.91,0.00016438,2]
[330418040,1719363040093,-2802.61,0.00016438,2]
[330418041,1719363040104,-500.0,0.00016438,2]
[330418042,1719363040114,-500.0,0.00016438,2]
[330418043,1719363040124,-500.0,0.00016438,2]
[330418044,1719363040134,-500.0,0.00016438,2]
[330418045,1719363040145,-500.0,0.00016438,2]
[330418046,1719363040155,-500.0,0.00016438,2]
[330418048,1719363040165,-687.5,0.00016438,2]
[330418050,1719363040176,-500.0,0.00016438,2]
[330418052,1719363040186,-5237.01,0.00016438,2]
[330418053,1719363040196,-1462.83,0.00016438,2]
[330418054,1719363040207,-500.0,0.00016438,2]
[330418056,1719363040216,-4509.01635578,0.00016438,2]
[330418084,1719363040477,-545.78364422,0.00016438,2]
[330418086,1719363040487,-500.0,0.00016438,2]
[330418088,1719363040497,-50.31463015,0.00016438,2]
[330418198,1719363043353,-449.68536985,0.00016438,2]
[330418199,1719363043362,-2203.52079992,0.00016438,2]
[330418231,1719363930061,1198.611,0.000139,2]
[330418289,1719364232509,-9147.97343874,0.00014374,2]
[330418291,1719364232519,-692.93325005,0.00014374,2]
[330418293,1719364232532,-300.0,0.00014506,2]
[330418295,1719364232541,-300.0,0.00014506,2]
[330418297,1719364232550,-374.36082633,0.00014639,2]
[330418299,1719364232559,-597.79480567,0.00014758,2]
[330418301,1719364232568,-292.92115938,0.00015168,2]
[330418303,1719364232578,-2671.11801842,0.00015168,2]
[330418307,1719364232605,-1871.85293915,0.00015168,2]
[330418559,1719364238537,-37632.43657266,0.00015168,2]
[330418560,1719364238547,-24900.0,0.00015169,2]
[330418561,1719364238557,-1070.95345322,0.00015605,2]
[330418562,1719364238566,-1609.79841418,0.00015706,2]
[330418563,1719364238576,-1609.79841415,0.00015864,2]
[330418564,1719364238586,-420.0,0.00015885,2]
[330418565,1719364238596,-420.0,0.00015957,2]
[330418566,1719364238606,-1609.79841415,0.00016022,2]
[330418567,1719364238617,-176.03735811,0.00016066,2]
[330418568,1719364238626,-401.69132048,0.00016067,2]
[330418569,1719364238637,-401.69132048,0.00016067,2]
[330418570,1719364238647,-153.0,0.00016164,2]
[330418571,1719364238656,-153.0,0.00016164,2]
[330418572,1719364238665,-153.0,0.00016164,2]
[330418573,1719364238675,-205.8057007,0.00016164,2]
[330418574,1719364238685,-153.0,0.00016164,2]
[330418575,1719364238695,-205.8057007,0.00016164,2]
[330418576,1719364238704,-205.8057007,0.00016164,2]
[330418577,1719364238714,-153.0,0.00016164,2]
[330418578,1719364238724,-205.8057007,0.00016164,2]
[330418579,1719364238735,-205.8057007,0.00016164,2]
[330418580,1719364238745,-153.0,0.00016164,2]
[330418581,1719364238754,-205.8057007,0.00016164,2]
[330418582,1719364238764,-205.8057007,0.00016164,2]
[330418583,1719364238774,-205.8057007,0.00016164,2]
[330418584,1719364238785,-153.0,0.00016164,2]
[330418585,1719364238795,-1609.79841415,0.0001618,2]
[330418586,1719364238804,-897.235,0.00016191,2]
[330418587,1719364238814,-842.54666328,0.00016299,2]
[330418588,1719364238824,-11117.37808337,0.00016337,2]
[330418589,1719364238835,-1609.79841415,0.00016338,2]
[330418590,1719364238845,-5236.76675032,0.00016338,2]
[330418591,1719364238855,-2000.0,0.00016338,2]
[330418592,1719364238864,-528.19460219,0.00016355,2]
[330418593,1719364238873,-154.83742071,0.00016355,2]
[330418594,1719364238883,-153.8908962,0.00016356,2]
[330418595,1719364238892,-565.7116958,0.00016435,2]
[330418596,1719364238903,-181.58035626,0.00016438,2]
[330418597,1719364238913,-866.75,0.00016438,2]
[330418598,1719364238923,-16555.91,0.00016438,2]
[330418599,1719364238933,-507.87549518,0.00016438,2]
[330418600,1719364238943,-500.0,0.00016438,2]
[330418602,1719364238952,-500.0,0.00016438,2]
[330418604,1719364238962,-500.0,0.00016438,2]
[330418606,1719364238972,-500.0,0.00016438,2]
[330418608,1719364238982,-500.0,0.00016438,2]
[330418610,1719364238991,-500.0,0.00016438,2]
[330418612,1719364239001,-500.0,0.00016438,2]
[330418614,1719364239014,-500.0,0.00016438,2]
[330418615,1719364239024,-500.0,0.00016438,2]
[330418616,1719364239036,-500.0,0.00016438,2]
[330418617,1719364239046,-500.0,0.00016438,2]
[330418618,1719364239056,-500.0,0.00016438,2]
[330418619,1719364239067,-500.0,0.00016438,2]
[330418620,1719364239076,-500.0,0.00016438,2]
[330418622,1719364239086,-500.0,0.00016438,2]
[330418624,1719364239097,-500.0,0.00016438,2]
[330418626,1719364239108,-546.98,0.00016438,2]
[330418628,1719364239119,-500.0,0.00016438,2]
[330418630,1719364239129,-500.0,0.00016438,2]
[330418632,1719364239138,-500.0,0.00016438,2]
[330418634,1719364239148,-790.57,0.00016438,2]
[330418635,1719364239159,-500.0,0.00016438,2]
[330418637,1719364239169,-1000.54,0.00016438,2]
[330418639,1719364239179,-500.0,0.00016438,2]
[330418641,1719364239190,-500.0,0.00016438,2]
[330418643,1719364239200,-500.0,0.00016438,2]
[330418645,1719364239210,-1015.15,0.00016438,2]
[330418646,1719364239221,-500.0,0.00016438,2]
[330418648,1719364239231,-500.0,0.00016438,2]
[330418650,1719364239241,-500.0,0.00016438,2]
[330418652,1719364239251,-533.21,0.00016438,2]
[330418654,1719364239261,-500.0,0.00016438,2]
[330418656,1719364239271,-567.16,0.00016438,2]
[330418658,1719364239283,-500.0,0.00016438,2]
[330418659,1719364239292,-500.0,0.00016438,2]
[330418660,1719364239302,-500.0,0.00016438,2]
[330418661,1719364239311,-500.0,0.00016438,2]
[330418662,1719364239320,-500.0,0.00016438,2]
[330418663,1719364239332,-1115.05,0.00016438,2]
[330418664,1719364239344,-500.0,0.00016438,2]
[330418665,1719364239354,-500.0,0.00016438,2]
[330418666,1719364239364,-939.51,0.00016438,2]
[330418668,1719364239375,-500.0,0.00016438,2]
[330418669,1719364239385,-500.0,0.00016438,2]
[330418671,1719364239395,-500.0,0.00016438,2]
[330418673,1719364239406,-500.0,0.00016438,2]
[330418675,1719364239420,-500.0,0.00016438,2]
[330418677,1719364239430,-500.0,0.00016438,2]
[330418679,1719364239440,-500.0,0.00016438,2]
[330418680,1719364239450,-500.0,0.00016438,2]
[330418682,1719364239460,-1215.65,0.00016438,2]
[330418684,1719364239470,-500.0,0.00016438,2]
[330418686,1719364239480,-1309.92,0.00016438,2]
[330418688,1719364239490,-500.0,0.00016438,2]
[330418689,1719364239499,-500.0,0.00016438,2]
[330418691,1719364239509,-500.0,0.00016438,2]
[330418693,1719364239519,-473.87871896,0.00016438,2]
[330418695,1719364239529,-500.0,0.00016438,2]
[330418696,1719364239542,-855.79,0.00016438,2]
[330418698,1719364239552,-516.75,0.00016438,2]
[330418700,1719364239562,-500.0,0.00016438,2]
[330418702,1719364239573,-500.0,0.00016438,2]
[330418703,1719364239583,-500.0,0.00016438,2]
[330418705,1719364239593,-500.0,0.00016438,2]
[330418707,1719364239604,-500.0,0.00016438,2]
[330418708,1719364239614,-500.0,0.00016438,2]
[330418709,1719364239624,-151.0,0.00016438,2]
[330418710,1719364239634,-500.0,0.00016438,2]
[330418711,1719364239646,-500.0,0.00016438,2]
[330418712,1719364239657,-500.0,0.00016438,2]
[330418713,1719364239667,-500.0,0.00016438,2]
[330418714,1719364239676,-158.95326838,0.00016438,2]
[330418715,1719364239686,-500.0,0.00016438,2]
[330418716,1719364239696,-500.0,0.00016438,2]
[330418717,1719364239707,-500.0,0.00016438,2]
[330418718,1719364239717,-500.0,0.00016438,2]
[330418719,1719364239728,-500.0,0.00016438,2]
[330418720,1719364239738,-4127.97,0.00016438,2]
[330418721,1719364239748,-500.0,0.00016438,2]
[330418722,1719364239757,-464.69298186,0.00016438,2]
[330418723,1719364239768,-500.0,0.00016438,2]
[330418724,1719364239778,-500.0,0.00016438,2]
[330418725,1719364239790,-500.0,0.00016438,2]
[330418726,1719364239800,-500.0,0.00016438,2]
[330418727,1719364239810,-649.94,0.00016438,2]
[330418728,1719364239820,-500.0,0.00016438,2]
[330418729,1719364239830,-1091.79,0.00016438,2]
[330418730,1719364239839,-916.4,0.00016438,2]
[330418732,1719364239850,-500.0,0.00016438,2]
[330418733,1719364239860,-500.0,0.00016438,2]
[330418735,1719364239870,-500.0,0.00016438,2]
[330418737,1719364239880,-2673.4,0.00016438,2]
[330418738,1719364239891,-500.0,0.00016438,2]
[330418739,1719364239901,-500.0,0.00016438,2]
[330418741,1719364239911,-500.0,0.00016438,2]
[330418743,1719364239920,-564.8,0.00016438,2]
[330418744,1719364239929,-500.0,0.00016438,2]
[330418745,1719364239939,-500.0,0.00016438,2]
[330418746,1719364239949,-500.0,0.00016438,2]
[330418747,1719364239959,-500.0,0.00016438,2]
[330418748,1719364239969,-500.0,0.00016438,2]
[330418749,1719364239979,-151.0,0.00016438,2]
[330418750,1719364239990,-500.0,0.00016438,2]
[330418751,1719364240000,-151.0,0.00016438,2]
[330418752,1719364240010,-500.0,0.00016438,2]
[330418753,1719364240020,-500.0,0.00016438,2]
[330418754,1719364240030,-500.0,0.00016438,2]
[330418755,1719364240040,-500.0,0.00016438,2]
[330418756,1719364240050,-592.4,0.00016438,2]
[330418757,1719364240060,-500.0,0.00016438,2]
[330418758,1719364240070,-500.0,0.00016438,2]
[330418759,1719364240080,-500.0,0.00016438,2]
[330418760,1719364240090,-500.0,0.00016438,2]
[330418761,1719364240099,-500.0,0.00016438,2]
[330418762,1719364240109,-370.93717894,0.00016438,2]
[330418764,1719364240118,-3522.9,0.00016438,2]
[330418766,1719364240129,-500.0,0.00016438,2]
[330418768,1719364240138,-409.65753112,0.00016438,2]
[330418769,1719364240148,-500.0,0.00016438,2]
[330418771,1719364240159,-512.20271342,0.00016438,2]
[330418773,1719364240169,-151.0,0.00016438,2]
[330418774,1719364240179,-500.0,0.00016438,2]
[330418775,1719364240189,-518.09414196,0.00016438,2]
[330418776,1719364240200,-500.0,0.00016438,2]
[330418777,1719364240209,-914.91,0.00016438,2]
[330418778,1719364240219,-500.0,0.00016438,2]
[330418779,1719364240229,-500.0,0.00016438,2]
[330418780,1719364240239,-500.0,0.00016438,2]
[330418781,1719364240249,-5237.01,0.00016438,2]
[330418782,1719364240259,-297.23291265,0.00016438,2]
[330418783,1719364240269,-500.0,0.00016438,2]
[330418784,1719364240279,-500.0,0.00016438,2]
[330418785,1719364240292,-500.0,0.00016438,2]
[330418786,1719364240302,-500.0,0.00016438,2]
[330418787,1719364240312,-500.0,0.00016438,2]
[330418788,1719364240322,-784.84,0.00016438,2]
[330418789,1719364240337,-528.7,0.00016438,2]
[330418790,1719364240347,-1511.68,0.00016438,2]
[330418791,1719364240357,-561.24032157,0.00016438,2]
[330418792,1719364240367,-4431.0,0.00016438,2]
[330418793,1719364240379,-500.0,0.00016438,2]
[330418794,1719364240388,-183.63615568,0.00016438,2]
[330418795,1719364240398,-500.0,0.00016438,2]
[330418796,1719364240408,-500.0,0.00016438,2]
[330418797,1719364240419,-1639.84,0.00016438,2]
[330418798,1719364240553,-1462.83,0.00016438,2]
[330418799,1719364240563,-500.0,0.00016438,2]
[330418800,1719364240573,-500.0,0.00016438,2]
[330418801,1719364240582,-500.0,0.00016438,2]